[Event "Fagernes Chess GM-Swiss 2025"]
[Site "Fagernes"]
[Date "2025.04.14"]
[Round "2.23"]
[White "Hedman, Erik"]
[Black "Wernberg, Nikolai Olsen"]
[Result "1-0"]
[Annotator "RC"]
[ECO "B40"]
[WhiteElo "2276"]
[BlackElo "1893"]
[PlyCount "125"]
[EventDate "2025.04.12"]
[EventCountry "NOR"]
[SourceTitle "playchess.com"]
[Source "ChessBase"]
[SourceQuality "1"]
[TimeControl "40/6000+30:2400+30"]

1. e4 {[%emt 0:00:25]} c5 {[%emt 0:00:05]} 2. Nf3 {[%emt 0:00:15]} e6 {[%emt 0:00:13]} 3. g3 {[%emt 0:00:04]} d5 {[%emt 0:00:24]} 4. exd5 {[%emt 0:00:12]} exd5 {[%emt 0:00:05]} 5. d4 {[%emt 0:00:16]} Nf6 {[%emt 0:01:20]} 6. Bg2 {[%emt 0:00:09]} Be7 {[%emt 0:02:08]} 7. O-O {[%emt 0:00:28]} O-O {[%emt 0:00:59]} 8. dxc5 {[%emt 0:07:42]} Bxc5 {[%emt 0:01:51]} 9. Nc3 {[%emt 0:00:50]} Nc6 {[%emt 0:01:42]} 10. Bg5 {[%emt 0:05:26]} Be6 {[%emt 0:03:06]} 11. Qd3 {[%emt 0:13:27]} Bb4 {[%emt 0:20:18]} 12. Rad1 {[%emt 0:14:32]} Rc8 {[%emt 0:06:19]} 13. a3 {[%emt 0:13:12]} Bxc3 {[%emt 0:02:03]} 14. Qxc3 {[%emt 0:00:06]} Ne4 {[%emt 0:04:01]} 15. Qxc6 {[%emt 0:00:13]} bxc6 {[%emt 0:08:16]} 16. Bxd8 {[%emt 0:00:15]} Rfxd8 {[%emt 0:00:10]} 17. Ne5 {[%emt 0:07:37]} f6 {[%emt 0:08:51]} 18. Nxc6 {[%emt 0:01:55]} Rxc6 {[%emt 0:01:46]} 19. Bxe4 {[%emt 0:02:57]} Rb8 {[%emt 0:01:16]} 20. Bxd5 {[%emt 0:09:52]} Bxd5 {[%emt 0:00:14]} 21. Rxd5 {[%emt 0:00:03]} Rxb2 {[%emt 0:00:20]} 22. Rc1 {[%emt 0:06:36]} Rcxc2 {[%emt 0:02:35]} 23. Rxc2 {[%emt 0:00:20]} Rxc2 {[%emt 0:00:08]} 24. Rd8+ {[%emt 0:00:15]} Kf7 {[%emt 0:00:07]} 25. Rd7+ {[%emt 0:00:02]} Kg6 {[%emt 0:00:08]} 26. Rxa7 {[%emt 0:00:04]} Ra2 {[%emt 0:00:57]} 27. Kg2 {[%emt 0:00:50]} h5 {[%emt 0:01:13]} 28. h4 {[%emt 0:05:15]} Kh6 {[%emt 0:01:17]} 29. Ra6 {[%emt 0:00:48]} Kg6 {[%emt 0:00:25]} 30. Kf3 {[%emt 0:00:53]} Kh6 {[%emt 0:00:57]} 31. a4 {[%emt 0:00:36]} Kg6 {[%emt 0:00:41]} 32. Ra7 {[%emt 0:02:56]} Kh6 {[%emt 0:00:55]} 33. Ra6 {[%emt 0:01:16]} Kg6 {[%emt 0:00:33]} 34. Ra8 {[%emt 0:01:09]} Kf5 {[%emt 0:01:34]} 35. a5 {[%emt 0:01:37]} Ra4 {[%emt 0:01:14]} 36. a6 {[%emt 0:00:13]} Ra2 {[%emt 0:00:18]} 37. Ra7 {[%emt 0:03:27]} g6 {[%emt 0:00:54]} 38. Ra8 {[%emt 0:01:32]} Ra4 {[%emt 0:00:56]} 39. Ke3 {[%emt 0:00:59]} Ra2 {[%emt 0:01:26]} 40. Ra7 {[%emt 0:08:54]} Ra4 {[%emt 0:04:20]} 41. Ra8 {[%emt 0:42:23]} Ra2 {[%emt 0:41:20]} 42. a7 {[%emt 0:00:00]} Ra1 {[%emt 0:00:00]} 43. f3 {[%emt 0:00:00]} Ra4 {[%emt 0:00:00]} 44. Kd3 {[%emt 0:00:00]} Ra1 {[%emt 0:00:00]} 45. Kd4 {[%emt 0:00:00]} Ra5 {[%emt 0:00:00]} 46. Kc4 {[%emt 0:00:00]} Ra1 {[%emt 0:00:00]} 47. Kc5 {[%emt 0:00:00]} Rc1+ {[%emt 0:00:00]} 48. Kd6 {[%emt 0:00:00]} Rd1+ {[%emt 0:00:00]} 49. Ke7 {[%emt 0:00:00]} Ra1 {[%emt 0:00:00]} 50. Kf7 {[%emt 0:00:00]} Ra2 {[%emt 0:00:00]} 51. Kg7 {[%emt 0:00:00]} g5 {[%emt 0:00:00]} 52. Kh6 {[%emt 0:00:00]} gxh4 {[%emt 0:00:00]} 53. gxh4 {[%emt 0:00:00]} Ra3 {[%emt 0:00:00]} 54. Kxh5 {[%emt 0:00:00]} Ra4 {[%emt 0:00:00]} 55. Rb8 {[%emt 0:00:00]} Rxa7 {[%emt 0:00:00]} 56. Rb5+ {[%emt 0:00:00]} Kf4 {[%emt 0:00:00]} 57. Kg6 {[%emt 0:00:00]} Kxf3 {[%emt 0:00:00]} 58. h5 {[%emt 0:00:00]} Ra6 {[%emt 0:00:00]} 59. Rf5+ {[%emt 0:00:00]} Kg4 {[%emt 0:00:00]} 60. h6 {[%emt 0:00:00]} Ra1 {[%emt 0:00:00]} 61. h7 {[%emt 0:00:00]} Rh1 {[%emt 0:00:00]} 62. Rxf6 {[%emt 0:00:00]} Rh5 {[%emt 0:00:00]} 63. Rf4+ {[%emt 0:00:00]} 1-0

[Event "Fagernes Chess GM-Swiss 2025"]
[Site "Fagernes"]
[Date "2025.04.14"]
[Round "2.24"]
[White "Ostensen, Nicolai Maxime"]
[Black "Arvola, Daniel"]
[Result "1-0"]
[Annotator "RC"]
[ECO "E94"]
[WhiteElo "2260"]
[BlackElo "2088"]
[PlyCount "75"]
[EventDate "2025.04.12"]
[EventCountry "NOR"]
[SourceTitle "playchess.com"]
[Source "ChessBase"]
[SourceQuality "1"]
[TimeControl "40/6000+30:2400+30"]

1. c4 {[%emt 0:00:06]} Nf6 {[%emt 0:00:45]} 2. d4 {[%emt 0:00:09]} g6 {[%emt 0:01:16]} 3. Nc3 {[%emt 0:00:08]} Bg7 {[%emt 0:00:07]} 4. e4 {[%emt 0:00:05]} d6 {[%emt 0:00:06]} 5. Nf3 {[%emt 0:00:06]} O-O {[%emt 0:00:22]} 6. Be2 {[%emt 0:00:07]} e5 {[%emt 0:01:09]} 7. d5 {[%emt 0:00:10]} Nbd7 {[%emt 0:05:56]} 8. O-O {[%emt 0:00:29]} h6 {[%emt 0:05:16]} 9. Qc2 {[%emt 0:01:38]} Ne8 {[%emt 0:01:18]} 10. b4 {[%emt 0:05:17]} a5 {[%emt 0:06:08]} 11. Ba3 {[%emt 0:00:15]} f5 {[%emt 0:01:35]} 12. bxa5 {[%emt 0:00:13]} Rxa5 {[%emt 0:04:00]} 13. Bb4 {[%emt 0:00:24]} Ra8 {[%emt 0:00:22]} 14. a4 {[%emt 0:00:32]} f4 {[%emt 0:03:30]} 15. Ne1 {[%emt 0:02:27]} g5 {[%emt 0:03:30]} 16. Nd3 {[%emt 0:07:20]} Ndf6 {[%emt 0:04:17]} 17. Rfc1 {[%emt 0:17:53]} g4 {[%emt 0:04:40]} 18. Qd1 {[%emt 0:06:33]} f3 {[%emt 0:18:11]} 19. gxf3 {[%emt 0:06:14]} gxf3 {[%emt 0:00:35]} 20. Bxf3 {[%emt 0:00:11]} Nh7 {[%emt 0:00:41]} 21. Bg2 {[%emt 0:09:07]} Ng5 {[%emt 0:06:08]} 22. Kh1 {[%emt 0:04:25]} Nf6 {[%emt 0:07:35]} 23. Qe2 {[%emt 0:03:43]} Bg4 {[%emt 0:03:28]} 24. f3 {[%emt 0:02:27]} Bh5 {[%emt 0:03:31]} 25. c5 {[%emt 0:01:15]} Nfh7 {[%emt 0:02:24]} 26. Rf1 {[%emt 0:01:52]} Qf6 {[%emt 0:01:27]} 27. cxd6 {[%emt 0:04:10]} cxd6 {[%emt 0:02:17]} 28. Nb5 {[%emt 0:01:04]} Rad8 {[%emt 0:01:25]} 29. Qe3 {[%emt 0:02:50]} Nxf3 {[%emt 0:09:14]} 30. Nxd6 {[%emt 0:02:56]} Rxd6 {[%emt 0:08:39]} 31. Bxd6 {[%emt 0:00:08]} Qxd6 {[%emt 0:00:06]} 32. Bxf3 {[%emt 0:00:09]} Bxf3+ {[%emt 0:00:13]} 33. Rxf3 {[%emt 0:00:08]} Rc8 {[%emt 0:00:07]} 34. Rc1 {[%emt 0:00:21]} Ra8 {[%emt 0:00:39]} 35. Nc5 {[%emt 0:01:31]} Ng5 {[%emt 0:00:23]} 36. Rg3 {[%emt 0:00:20]} b6 {[%emt 0:01:00]} 37. Ne6 {[%emt 0:00:11]} Nxe6 {[%emt 0:01:48]} 38. Qxh6 {[%emt 0:00:19]} 1-0

[Event "Fagernes Chess GM-Swiss 2025"]
[Site "Fagernes"]
[Date "2025.04.14"]
[Round "2.25"]
[White "Berget, Eirik"]
[Black "Pang, Ethan"]
[Result "1/2-1/2"]
[Annotator "RC"]
[ECO "B33"]
[WhiteElo "2041"]
[BlackElo "2257"]
[PlyCount "44"]
[EventDate "2025.04.12"]
[EventCountry "NOR"]
[SourceTitle "playchess.com"]
[Source "ChessBase"]
[SourceQuality "1"]
[TimeControl "40/6000+30:2400+30"]

1. e4 {[%emt 0:00:11]} c5 {[%emt 0:01:40]} 2. Nf3 {[%emt 0:00:21]} Nc6 {[%emt 0:00:41]} 3. d4 {[%emt 0:00:15]} cxd4 {[%emt 0:00:24]} 4. Nxd4 {[%emt 0:00:07]} Nf6 {[%emt 0:00:30]} 5. Nc3 {[%emt 0:00:23]} e5 {[%emt 0:00:57]} 6. Nf3 {[%emt 0:00:31]} Bb4 {[%emt 0:00:26]} 7. Bc4 {[%emt 0:00:18]} O-O {[%emt 0:02:25]} 8. Bg5 {[%emt 0:01:06]} h6 {[%emt 0:11:03]} 9. Bh4 {[%emt 0:00:30]} Bxc3+ {[%emt 0:03:06]} 10. bxc3 {[%emt 0:00:10]} d6 {[%emt 0:01:30]} 11. h3 {[%emt 0:03:56]} Qa5 {[%emt 0:05:25]} 12. Bxf6 {[%emt 0:04:09]} Qxc3+ {[%emt 0:00:21]} 13. Nd2 {[%emt 0:00:05]} gxf6 {[%emt 0:00:57]} 14. Rb1 {[%emt 0:03:27]} Nd4 {[%emt 0:05:10]} 15. Bb3 {[%emt 0:02:08]} f5 {[%emt 0:10:41]} 16. O-O {[%emt 0:12:03]} f4 {[%emt 0:03:18]} 17. Qh5 {[%emt 0:02:00]} Kg7 {[%emt 0:06:55]} 18. Nc4 {[%emt 0:08:27]} f3 {[%emt 0:14:49]} 19. Nxd6 {[%emt 0:04:31]} Ne2+ {[%emt 0:15:57]} 20. Kh2 {[%emt 0:00:38]} Nf4 {[%emt 0:04:21]} 21. Ne8+ {[%emt 0:04:32]} Kh7 {[%emt 0:00:21]} 22. Nf6+ {[%emt 0:00:09]} Kg7 {[%emt 0:00:06]} 1/2-1/2

[Event "Fagernes Chess GM-Swiss 2025"]
[Site "Fagernes"]
[Date "2025.04.14"]
[Round "2.26"]
[White "Oksendal, Martin"]
[Black "Holand, Per Fredrik"]
[Result "0-1"]
[Annotator "RC"]
[ECO "C84"]
[WhiteElo "2250"]
[BlackElo "2070"]
[PlyCount "126"]
[EventDate "2025.04.12"]
[EventCountry "NOR"]
[SourceTitle "playchess.com"]
[Source "ChessBase"]
[SourceQuality "1"]
[TimeControl "40/6000+30:2400+30"]

1. e4 {[%emt 0:00:01]} e5 {[%emt 0:01:50]} 2. Nf3 {[%emt 0:01:01]} Nc6 {[%emt 0:00:06]} 3. Bb5 {[%emt 0:00:26]} a6 {[%emt 0:00:07]} 4. Ba4 {[%emt 0:00:04]} Nf6 {[%emt 0:00:07]} 5. O-O {[%emt 0:00:21]} Nxe4 {[%emt 0:00:08]} 6. d4 {[%emt 0:00:11]} Be7 {[%emt 0:00:06]} 7. Re1 {[%emt 0:00:59]} b5 {[%emt 0:00:11]} 8. Rxe4 {[%emt 0:02:14]} d5 {[%emt 0:00:54]} 9. Nxe5 {[%emt 0:00:45]} Nxe5 {[%emt 0:00:08]} 10. Rxe5 {[%emt 0:00:02]} bxa4 {[%emt 0:00:09]} 11. b3 {[%emt 0:00:57]} O-O {[%emt 0:02:58]} 12. Rxe7 {[%emt 0:20:09]} Qxe7 {[%emt 0:00:08]} 13. Ba3 {[%emt 0:00:02]} Qg5 {[%emt 0:09:09]} 14. Bxf8 {[%emt 0:10:04]} Bh3 {[%emt 0:00:09]} 15. Qf1 {[%emt 0:17:08]} Rxf8 {[%emt 0:01:24]} 16. Nc3 {[%emt 0:06:37]} a3 {[%emt 0:01:14]} 17. Re1 {[%emt 0:07:19]} Be6 {[%emt 0:03:46]} 18. f4 {[%emt 0:17:29]} Qf6 {[%emt 0:05:57]} 19. Re5 {[%emt 0:03:25]} c6 {[%emt 0:00:08]} 20. g3 {[%emt 0:09:19]} Bc8 {[%emt 0:03:17]} 21. Na4 {[%emt 0:02:31]} h5 {[%emt 0:00:51]} 22. Nc5 {[%emt 0:02:34]} h4 {[%emt 0:02:25]} 23. Qf2 {[%emt 0:01:55]} h3 {[%emt 0:03:04]} 24. Qe3 {[%emt 0:01:30]} Qd8 {[%emt 0:00:33]} 25. Qd3 {[%emt 0:01:54]} f6 {[%emt 0:00:57]} 26. Re3 {[%emt 0:01:01]} Re8 {[%emt 0:01:03]} 27. Kf2 {[%emt 0:01:24]} Rxe3 {[%emt 0:01:46]} 28. Qxe3 {[%emt 0:01:18]} a5 {[%emt 0:04:11]} 29. c3 {[%emt 0:01:18]} Bg4 {[%emt 0:00:54]} 30. Nb7 {[%emt 0:00:49]} Qd7 {[%emt 0:01:17]} 31. Nc5 {[%emt 0:00:37]} Qf5 {[%emt 0:06:00]} 32. Qd3 {[%emt 0:00:24]} g5 {[%emt 0:02:37]} 33. Ke3 {[%emt 0:00:26]} gxf4+ {[%emt 0:00:21]} 34. gxf4 {[%emt 0:00:05]} Qh5 {[%emt 0:00:40]} 35. Kd2 {[%emt 0:00:41]} Qh4 {[%emt 0:01:33]} 36. Qe3 {[%emt 0:00:24]} Kf7 {[%emt 0:00:45]} 37. b4 {[%emt 0:00:29]} axb4 {[%emt 0:00:34]} 38. cxb4 {[%emt 0:00:01]} Bf5 {[%emt 0:00:32]} 39. Nb7 {[%emt 0:01:09]} Be4 {[%emt 0:04:06]} 40. Nd8+ {[%emt 0:00:39]} Ke8 {[%emt 0:04:38]} 41. Nxc6 {[%emt 0:15:18]} Qg4 {[%emt 0:00:54]} 42. Ke1 {[%emt 0:13:58]} Qg2 {[%emt 0:03:49]} 43. Qf2 {[%emt 0:01:17]} Kd7 {[%emt 0:02:38]} 44. Na7 {[%emt 0:06:01]} Qh1+ {[%emt 0:02:11]} 45. Qf1 {[%emt 0:01:53]} Qxf1+ {[%emt 0:01:00]} 46. Kxf1 {[%emt 0:00:01]} Bd3+ {[%emt 0:00:15]} 47. Ke1 {[%emt 0:00:12]} Kc7 {[%emt 0:00:14]} 48. Kd2 {[%emt 0:02:34]} Bc4 {[%emt 0:00:26]} 49. b5 {[%emt 0:00:13]} Bxa2 {[%emt 0:00:24]} 50. Kc3 {[%emt 0:01:54]} Bc4 {[%emt 0:00:43]} 51. Nc6 {[%emt 0:01:40]} Kb6 {[%emt 0:07:11]} 52. Ne7 {[%emt 0:00:55]} Kxb5 {[%emt 0:00:08]} 53. Ng8 {[%emt 0:00:47]} a2 {[%emt 0:00:43]} 54. Kb2 {[%emt 0:00:01]} Bb3 {[%emt 0:00:18]} 55. Nxf6 {[%emt 0:00:23]} Kc4 {[%emt 0:00:10]} 56. Ng4 {[%emt 0:00:25]} Kxd4 {[%emt 0:01:02]} 57. f5 {[%emt 0:00:17]} Ke4 {[%emt 0:01:17]} 58. Nf2+ {[%emt 0:01:18]} Ke3 {[%emt 0:00:41]} 59. Ng4+ {[%emt 0:00:36]} Ke2 {[%emt 0:00:45]} 60. Ne5 {[%emt 0:00:22]} d4 {[%emt 0:01:06]} 61. Nc6 {[%emt 0:00:20]} Ke3 {[%emt 0:01:17]} 62. Nb4 {[%emt 0:00:51]} d3 {[%emt 0:00:42]} 63. f6 {[%emt 0:00:26]} a1=Q+ {[%emt 0:02:38]} 0-1

[Event "Fagernes Chess GM-Swiss 2025"]
[Site "Fagernes"]
[Date "2025.04.14"]
[Round "2.27"]
[White "Kittilsen, Sigurd"]
[Black "Aamodt, Peder Marcus"]
[Result "1-0"]
[Annotator "RC"]
[ECO "B28"]
[WhiteElo "2010"]
[BlackElo "2242"]
[PlyCount "85"]
[EventDate "2025.04.12"]
[EventCountry "NOR"]
[SourceTitle "playchess.com"]
[Source "ChessBase"]
[SourceQuality "1"]
[TimeControl "40/6000+30:2400+30"]

1. e4 {[%emt 0:00:06]} c5 {[%emt 0:00:33]} 2. Nf3 {[%emt 0:00:15]} a6 {[%emt 0:00:06]} 3. c4 {[%emt 0:00:56]} Nc6 {[%emt 0:00:58]} 4. d4 {[%emt 0:01:04]} cxd4 {[%emt 0:00:08]} 5. Nxd4 {[%emt 0:00:05]} e5 {[%emt 0:00:27]} 6. Nxc6 {[%emt 0:06:37]} bxc6 {[%emt 0:01:48]} 7. Nc3 {[%emt 0:04:26]} Nf6 {[%emt 0:00:58]} 8. Be2 {[%emt 0:00:49]} Bb4 {[%emt 0:02:35]} 9. O-O {[%emt 0:02:10]} O-O {[%emt 0:07:39]} 10. Qd3 {[%emt 0:04:43]} d6 {[%emt 0:02:59]} 11. Rd1 {[%emt 0:03:01]} Be6 {[%emt 0:04:27]} 12. Be3 {[%emt 0:11:36]} Nd7 {[%emt 0:20:00]} 13. a3 {[%emt 0:04:08]} Bxc3 {[%emt 0:12:23]} 14. Qxc3 {[%emt 0:01:01]} Qb8 {[%emt 0:03:28]} 15. b4 {[%emt 0:10:08]} f5 {[%emt 0:02:21]} 16. exf5 {[%emt 0:05:01]} Bxf5 {[%emt 0:00:33]} 17. Bf3 {[%emt 0:06:44]} e4 {[%emt 0:05:06]} 18. Be2 {[%emt 0:00:01]} Be6 {[%emt 0:01:39]} 19. Bd4 {[%emt 0:07:19]} Nf6 {[%emt 0:02:03]} 20. Qg3 {[%emt 0:03:34]} d5 {[%emt 0:04:40]} 21. cxd5 {[%emt 0:06:24]} Qxg3 {[%emt 0:00:18]} 22. hxg3 {[%emt 0:00:15]} Nxd5 {[%emt 0:00:04]} 23. Rac1 {[%emt 0:01:31]} Bd7 {[%emt 0:05:19]} 24. Bc4 {[%emt 0:00:59]} h6 {[%emt 0:18:13]} 25. a4 {[%emt 0:05:13]} Rab8 {[%emt 0:02:12]} 26. Bc5 {[%emt 0:03:22]} Rfd8 {[%emt 0:00:43]} 27. Bxa6 {[%emt 0:03:04]} Nxb4 {[%emt 0:01:16]} 28. Bc4+ {[%emt 0:05:12]} Nd5 {[%emt 0:02:10]} 29. a5 {[%emt 0:00:48]} Bg4 {[%emt 0:00:23]} 30. Rd4 {[%emt 0:01:09]} Bf5 {[%emt 0:02:17]} 31. Rcd1 {[%emt 0:02:03]} Kh7 {[%emt 0:01:11]} 32. Bxd5 {[%emt 0:00:50]} Rxd5 {[%emt 0:00:21]} 33. Rxd5 {[%emt 0:00:30]} cxd5 {[%emt 0:00:06]} 34. a6 {[%emt 0:04:28]} Rb5 {[%emt 0:06:08]} 35. a7 {[%emt 0:01:59]} Ra5 {[%emt 0:00:18]} 36. Bb6 {[%emt 0:00:39]} Ra6 {[%emt 0:02:10]} 37. Rxd5 {[%emt 0:00:13]} Bc8 {[%emt 0:00:23]} 38. Rd8 {[%emt 0:01:29]} Bb7 {[%emt 0:00:13]} 39. Bd4 {[%emt 0:02:15]} Bc6 {[%emt 0:00:53]} 40. Rc8 {[%emt 0:00:27]} Bd5 {[%emt 0:00:30]} 41. Rd8 {[%emt 0:42:42]} Bc6 {[%emt 0:04:08]} 42. Rd6 {[%emt 0:00:00]} e3 {[%emt 0:00:09]} 43. fxe3 {[%emt 0:00:00]} 1-0

[Event "Fagernes Chess GM-Swiss 2025"]
[Site "Fagernes"]
[Date "2025.04.14"]
[Round "2.28"]
[White "Andersen, Morten"]
[Black "Simonsen, David Mindestrommen"]
[Result "1/2-1/2"]
[Annotator "RC"]
[ECO "E14"]
[WhiteElo "2200"]
[BlackElo "2034"]
[PlyCount "28"]
[EventDate "2025.04.12"]
[EventCountry "NOR"]
[SourceTitle "playchess.com"]
[Source "ChessBase"]
[SourceQuality "1"]
[TimeControl "40/6000+30:2400+30"]

1. Nf3 {[%emt 0:00:03]} d5 {[%emt 0:03:43]} 2. e3 {[%emt 0:00:21]} Nf6 {[%emt 0:05:46]} 3. c4 {[%emt 0:00:46]} e6 {[%emt 0:00:16]} 4. b3 {[%emt 0:00:42]} Be7 {[%emt 0:00:24]} 5. Bb2 {[%emt 0:02:53]} O-O {[%emt 0:02:49]} 6. Nc3 {[%emt 0:00:28]} b6 {[%emt 0:01:31]} 7. d4 {[%emt 0:05:08]} Bb7 {[%emt 0:00:24]} 8. Be2 {[%emt 0:02:37]} Nbd7 {[%emt 0:01:17]} 9. O-O {[%emt 0:00:43]} h6 {[%emt 0:01:13]} 10. Rc1 {[%emt 0:02:34]} c5 {[%emt 0:08:39]} 11. cxd5 {[%emt 0:07:16]} Nxd5 {[%emt 0:01:08]} 12. Nxd5 {[%emt 0:08:03]} Bxd5 {[%emt 0:03:35]} 13. Nd2 {[%emt 0:05:51]} cxd4 {[%emt 0:13:58]} 14. Bxd4 {[%emt 0:00:56]} Bf6 {[%emt 0:04:38]} 1/2-1/2

[Event "Fagernes Chess GM-Swiss 2025"]
[Site "Fagernes"]
[Date "2025.04.14"]
[Round "2.29"]
[White "Hausken, Andreas Skrede"]
[Black "Westrum, Kim Roger Hansen"]
[Result "0-1"]
[Annotator "RC"]
[ECO "C01"]
[WhiteElo "2002"]
[BlackElo "2193"]
[PlyCount "86"]
[EventDate "2025.04.12"]
[EventCountry "NOR"]
[SourceTitle "playchess.com"]
[Source "ChessBase"]
[SourceQuality "1"]
[TimeControl "40/6000+30:2400+30"]

1. e4 {[%emt 0:05:36]} e6 {[%emt 0:00:14]} 2. d4 {[%emt 0:00:05]} d5 {[%emt 0:00:08]} 3. Nd2 {[%emt 0:00:04]} Be7 {[%emt 0:00:10]} 4. exd5 {[%emt 0:03:14]} exd5 {[%emt 0:00:36]} 5. Bd3 {[%emt 0:00:05]} Nf6 {[%emt 0:00:47]} 6. Ne2 {[%emt 0:00:11]} O-O {[%emt 0:08:45]} 7. O-O {[%emt 0:01:55]} b6 {[%emt 0:13:08]} 8. Nf3 {[%emt 0:01:00]} c5 {[%emt 0:11:56]} 9. c3 {[%emt 0:00:55]} Nc6 {[%emt 0:03:04]} 10. h3 {[%emt 0:02:23]} Bd6 {[%emt 0:04:23]} 11. Bf4 {[%emt 0:00:18]} c4 {[%emt 0:03:30]} 12. Bc2 {[%emt 0:00:47]} Bxf4 {[%emt 0:03:53]} 13. Nxf4 {[%emt 0:00:07]} Qd6 {[%emt 0:00:12]} 14. Ne2 {[%emt 0:00:21]} b5 {[%emt 0:02:36]} 15. Ng3 {[%emt 0:00:16]} Re8 {[%emt 0:03:54]} 16. Re1 {[%emt 0:01:30]} Bd7 {[%emt 0:00:24]} 17. Qd2 {[%emt 0:00:15]} Rxe1+ {[%emt 0:11:40]} 18. Rxe1 {[%emt 0:00:06]} Re8 {[%emt 0:00:06]} 19. Rxe8+ {[%emt 0:01:04]} Nxe8 {[%emt 0:05:23]} 20. Nh5 {[%emt 0:05:14]} f6 {[%emt 0:01:37]} 21. Qe3 {[%emt 0:01:59]} g6 {[%emt 0:04:22]} 22. Ng3 {[%emt 0:10:18]} Qe6 {[%emt 0:05:38]} 23. Qh6 {[%emt 0:00:46]} Nd6 {[%emt 0:01:31]} 24. Nh5 {[%emt 0:08:32]} gxh5 {[%emt 0:06:16]} 25. Qxh7+ {[%emt 0:00:35]} Kf8 {[%emt 0:00:01]} 26. Nh4 {[%emt 0:00:18]} Be8 {[%emt 0:01:31]} 27. Bf5 {[%emt 0:01:46]} Qg8 {[%emt 0:13:10]} 28. Qc7 {[%emt 0:00:54]} Nxf5 {[%emt 0:00:05]} 29. Nxf5 {[%emt 0:00:05]} Qf7 {[%emt 0:00:10]} 30. Qd6+ {[%emt 0:01:08]} Ne7 {[%emt 0:00:01]} 31. Kf1 {[%emt 0:01:35]} a5 {[%emt 0:00:10]} 32. Qc5 {[%emt 0:02:47]} Qe6 {[%emt 0:01:08]} 33. Nxe7 {[%emt 0:00:10]} Qxe7 {[%emt 0:00:16]} 34. Qxd5 {[%emt 0:00:05]} Kg7 {[%emt 0:02:08]} 35. a4 {[%emt 0:01:40]} Qd7 {[%emt 0:01:30]} 36. Qa8 {[%emt 0:00:57]} bxa4 {[%emt 0:00:25]} 37. Qxa5 {[%emt 0:00:08]} Qb5 {[%emt 0:00:09]} 38. Qc7+ {[%emt 0:00:11]} Bf7 {[%emt 0:00:20]} 39. h4 {[%emt 0:00:43]} Qxb2 {[%emt 0:00:44]} 40. Qg3+ {[%emt 0:00:05]} Kh7 {[%emt 0:00:34]} 41. Kg1 {[%emt 0:40:23]} a3 {[%emt 0:41:40]} 42. Qc7 {[%emt 0:00:13]} Qb1+ {[%emt 0:00:42]} 43. Kh2 {[%emt 0:00:04]} Kg7 {[%emt 0:00:16]} 0-1

[Event "Fagernes Chess GM-Swiss 2025"]
[Site "Fagernes"]
[Date "2025.04.14"]
[Round "2.30"]
[White "Olsen, William Alexander"]
[Black "Stromhaug, Kristoffer Wang"]
[Result "0-1"]
[Annotator "RC"]
[ECO "A11"]
[WhiteElo "2188"]
[BlackElo "2020"]
[PlyCount "80"]
[EventDate "2025.04.12"]
[EventCountry "NOR"]
[SourceTitle "playchess.com"]
[Source "ChessBase"]
[SourceQuality "1"]
[TimeControl "40/6000+30:2400+30"]

1. Nf3 {[%emt 0:00:02]} d5 {[%emt 0:00:08]} 2. e3 {[%emt 0:00:05]} Nf6 {[%emt 0:00:20]} 3. c4 {[%emt 0:00:08]} e6 {[%emt 0:02:37]} 4. b3 {[%emt 0:00:11]} c6 {[%emt 0:04:20]} 5. Bb2 {[%emt 0:00:06]} Nbd7 {[%emt 0:02:03]} 6. Nc3 {[%emt 0:00:22]} Bd6 {[%emt 0:06:08]} 7. Qc2 {[%emt 0:00:13]} O-O {[%emt 0:02:01]} 8. Be2 {[%emt 0:00:45]} e5 {[%emt 0:09:47]} 9. cxd5 {[%emt 0:01:02]} Nxd5 {[%emt 0:01:52]} 10. Ne4 {[%emt 0:00:48]} Bc7 {[%emt 0:05:33]} 11. Ng3 {[%emt 0:07:32]} Re8 {[%emt 0:13:14]} 12. O-O {[%emt 0:00:37]} N7f6 {[%emt 0:03:24]} 13. d4 {[%emt 0:04:39]} exd4 {[%emt 0:07:29]} 14. Nxd4 {[%emt 0:05:59]} Be5 {[%emt 0:04:27]} 15. Rad1 {[%emt 0:05:02]} Qc7 {[%emt 0:06:19]} 16. Rfe1 {[%emt 0:14:08]} Bg4 {[%emt 0:09:56]} 17. Bxg4 {[%emt 0:07:03]} Nxg4 {[%emt 0:00:09]} 18. Qf5 {[%emt 0:00:46]} Bxg3 {[%emt 0:11:50]} 19. hxg3 {[%emt 0:32:50]} Ngxe3 {[%emt 0:00:18]} 20. fxe3 {[%emt 0:02:35]} Nxe3 {[%emt 0:00:18]} 21. Rxe3 {[%emt 0:00:35]} Rxe3 {[%emt 0:00:09]} 22. Nf3 {[%emt 0:02:55]} Qxg3 {[%emt 0:06:02]} 23. Rd7 {[%emt 0:02:41]} Rf8 {[%emt 0:04:10]} 24. Ba3 {[%emt 0:08:08]} g6 {[%emt 0:04:24]} 25. Qf6 {[%emt 0:02:47]} Re2 {[%emt 0:01:03]} 26. Qg5 {[%emt 0:00:53]} Re1+ {[%emt 0:00:36]} 27. Nxe1 {[%emt 0:00:01]} Qxg5 {[%emt 0:00:07]} 28. Bxf8 {[%emt 0:00:09]} Kxf8 {[%emt 0:00:29]} 29. Rxb7 {[%emt 0:00:00]} Qd2 {[%emt 0:01:03]} 30. Nf3 {[%emt 0:01:22]} Qxa2 {[%emt 0:00:34]} 31. Kh2 {[%emt 0:00:10]} Qa6 {[%emt 0:00:58]} 32. Rb8+ {[%emt 0:00:56]} Kg7 {[%emt 0:00:30]} 33. Ne5 {[%emt 0:00:34]} Qa5 {[%emt 0:02:35]} 34. Re8 {[%emt 0:00:31]} Qd5 {[%emt 0:00:30]} 35. Nc4 {[%emt 0:00:34]} Qh5+ {[%emt 0:00:46]} 36. Kg3 {[%emt 0:00:01]} Qg5+ {[%emt 0:00:11]} 37. Kh3 {[%emt 0:00:08]} Qb5 {[%emt 0:01:02]} 38. Re3 {[%emt 0:00:28]} a5 {[%emt 0:00:33]} 39. Rf3 {[%emt 0:00:27]} a4 {[%emt 0:00:45]} 40. Nd6 {[%emt 0:00:15]} Qh5+ {[%emt 0:00:13]} 0-1